Cogmind - Beta 16 @@@ ROGUE MODE // 2025.12.03 @ 20:08:32 Player: jumpy Result: Destroyed by S-10 Pest with Light Assault Rifle Performance ------------- Evolutions (1) 500 Regions Visited (4) 800 Robots Destroyed (39) 195 Value Destroyed (1192) 1192 Prototype IDs (1) 20 Alien Tech Used (0) 0 Bonus (200) 200 TOTAL SCORE: 2907 Bonus ------- Entered Garrisons 200 Cogmind --------- Core Integrity 0/400 Matter 272/300 Energy 95/100 System Corruption 1% Temperature Cool (0) Movement Core (200) Ox3 Location -9/Garrison Parts ------- > --- POWER (1) -------- (None) > --- PROPULSION (3) --- (None) > --- UTILITY (3) ------ Medium Storage Unit Targeting Computer > --- WEAPON (2) ------- Katana > --- INVENTORY (10) --- Light Armor Plating Hacking Suite Hacking Suite Mining Laser Peak State ------------ > --- POWER ------------ Heavy Ion Engine > --- PROPULSION ------- Aluminum Leg Aluminum Leg Aluminum Leg > --- UTILITY ---------- Heat Sink Medium Storage Unit Seismic Detector > --- WEAPON ----------- Beam Rifle Beam Rifle > --- INVENTORY -------- Heavy Ion Engine Aluminum Leg Aluminum Leg Wheel Targeting Computer Light Armor Plating Beam Rifle Mining Laser [Rating: 14] Favorites ----------- Power Heavy Ion Engine Engine Heavy Ion Engine Propulsion Aluminum Leg Leg Aluminum Leg Wheel Wheel Utility Seismic Detector Device Seismic Detector Storage Medium Storage Unit Processor Targeting Computer Weapon Beam Rifle Energy Gun Beam Rifle Ballistic Gun Assault Rifle Slashing Weapon Katana Build | -11 -10 -9 -9 -9 ------- Run | Yrd Mat Mat Sto Gar Slots Evolved 2 | . . 2 . . Power . | . . . . . Propulsion 1 | . . 1 . . Utility 1 | . . 1 . . Weapon . | . . . . . Parts Attached 30 | 8 9 3 3 7 Power 6 | 2 2 . 1 1 Engine 6 | 2 2 . 1 1 Core . | . . . . . Reactor . | . . . . . Propulsion 10 | 2 3 1 2 2 Treads . | . . . . . Leg 9 | 2 3 1 2 1 Wheel 1 | . . . . 1 Hover . | . . . . . Flight . | . . . . . Utility 6 | 2 2 1 . 1 Device 3 | 1 1 1 . . Storage 2 | 1 1 . . . Processor 1 | . . . . 1 Hackware . | . . . . . Protection . | . . . . . Artifact . | . . . . . Weapon 8 | 2 2 1 . 3 Energy Gun 3 | . 2 1 . . Energy Cannon . | . . . . . Ballistic Gun 4 | 2 . . . 2 Ballistic Cannon . | . . . . . Launcher . | . . . . . Special Weapon . | . . . . . Impact Weapon . | . . . . . Slashing Weapon 1 | . . . . 1 Piercing Weapon . | . . . . . Special Melee Weapon . | . . . . . Unidentified Prototypes 1 | . 1 . . . Parts Lost 16 | . 1 1 1 13 Power 2 | . . . . 2 Propulsion 7 | . . . 1 6 Utility 3 | . 1 . . 2 Weapon 4 | . . 1 . 3 Highest Loss Streak 7 | . 1 1 1 7 To Critical Strikes . | . . . . . Average Backups 7 | 3 8 9 8 7 Power . | . 1 1 . . Propulsion 2 | 1 2 3 2 1 Utility 2 | . 2 3 4 3 Weapon 1 | 1 2 1 1 1 Tool/Special . | . . . . . Unused Backups 7 | . 3 . . 4 Power . | . . . . . Propulsion 1 | . 1 . . . Utility 4 | . 1 . . 3 Weapon 2 | . 1 . . 1 Tool/Special . | . . . . . Average Slot Usage (%) 94 | . 99 99 95 70 Engine 12 | . 14 11 11 9 Leg 28 | . 27 33 31 26 Device 13 | . 13 21 22 4 Storage 12 | . 14 11 11 11 Energy Gun 18 | . 22 22 19 1 Ballistic Gun 5 | . 5 . . 10 Peak Build Rating 14 | 7 12 14 14 12 Average Rating 10 | 5 11 13 13 9 On Entrance 9 | . 7 12 14 12 Avg Prop Armor Cover (%) . | . . . . . Naked Turns . | . . . . . Heaviest Build 26 | 15 25 26 26 23 Greatest Support 30 | 20 20 30 30 30 Greatest Overweight (x) 3 | . 1 . 2 3 Average Overweight (x) . | . . . . . Largest Inventory Capacity 10 | 8 10 10 10 10 Average Capacity 9 | 7 8 10 10 10 Most Carried 10 | 7 10 10 9 8 Average Carried 7 | 3 8 9 8 7 Final Capacity 10 | 8 10 10 10 10 Final Carried 10 | 7 10 9 8 4 Class Distribution -------------------- 91% | Mutant 8% | Scavenger-Mutant Dominant Class ---------------- Mutant | -10/Materials Mutant | -9/Materials Mutant | -9/Storage Scavenger-Mutant | -9/Garrison Resources | -11 -10 -9 -9 -9 ----------- Run | Yrd Mat Mat Sto Gar Matter Collected 816 | 341 307 39 40 89 Remotely . | . . . . . Salvage Created 1516 | 118 865 80 287 166 Parts 71 | 8 41 2 11 9 Haulers Intercepted 2 | . 1 . 1 . Recyclers Shooed 1 | . . . 1 . Parts Field Recycled . | . . . . . Retrieved Matter . | . . . . . Parts Self-Destructed . | . . . . . Prevented . | . . . . . Parts Restored . | . . . . . Kills | -11 -10 -9 -9 -9 ------- Run | Yrd Mat Mat Sto Gar Combat Hostiles Destroyed 28 | . 15 1 5 7 Guns 27 | . 15 1 4 7 Classes Destroyed 11 | 2 5 1 . 3 Worker 2 | . 1 1 . . Builder 1 | . 1 . . . Tunneler 3 | 3 . . . . Hauler 2 | . 1 . 1 . Recycler 2 | 1 1 . . . Watcher 1 | . 1 . . . Swarmer 5 | . . . . 5 Grunt 18 | . 15 . 3 . Brawler 1 | . . . . 1 Duelist 1 | . . . . 1 Sentry 3 | . . 1 2 . Best Kill Streak 6 | 3 6 1 4 3 Combat Bots Only 4 | . 3 1 4 3 Max Kills in Single Turn 2 | 1 2 1 1 1 Gunslinging 1 | . 1 . . . Exploded . | . . . . . Melee . | . . . . . Uniques/NPCs Destroyed . | . . . . . Combat | -11 -10 -9 -9 -9 -------- Run | Yrd Mat Mat Sto Gar Hostile Shots Fired 215 | . 57 14 35 109 Missed 54 | . 20 2 13 19 Hits 161 | . 37 12 22 90 Melee 16 | . . . . 16 Projectile 145 | . 37 12 22 74 Critical Strikes 3 | . . . . 3 Damage Taken 2034 | . 456 176 267 1135 Core 467 | . 63 17 20 367 Absorbed by Shields . | . . . . . Core Remaining (%) 87 | 100 74 . . . Volleys Fired 120 | 15 51 8 17 29 Largest 2 | 2 2 2 2 2 Hottest 112 | 40 112 112 112 56 Shots Fired 224 | 30 104 15 34 41 Gun 224 | 30 104 15 34 41 Cannon . | . . . . . Launcher . | . . . . . Special . | . . . . . Kinetic 95 | 30 30 . . 35 Thermal 129 | . 74 15 34 6 Explosive . | . . . . . Electromagnetic . | . . . . . Robot Hit Streak 17 | 5 17 7 17 5 Robot Miss Streak 6 | 3 3 6 2 3 Penetration Max . | . . . . . Secondary Targets 4 | . 4 . . . Max Gunslinging Chain 1 | . 1 . . . Shots Hit Robots 147 | 20 66 8 24 29 Core Hits 57 | 5 30 3 7 12 Critical Kills . | . . . . . Critical Parts Destroyed . | . . . . . Critical Strikes 9 | . 8 1 . . Burn 9 | . 8 1 . . Melee Attacks 8 | . . . . 8 Impact . | . . . . . Slashing 8 | . . . . 8 Piercing . | . . . . . Sneak Attacks . | . . . . . Combat Hostiles . | . . . . . Follow-up Attacks . | . . . . . Damage Inflicted 1963 | 191 958 117 390 307 Guns 1931 | 191 957 117 388 278 Cannons . | . . . . . Explosions . | . . . . . Melee 29 | . . . . 29 Ramming 3 | . 1 . 2 . Kinetic 677 | 191 266 . . 220 Thermal 1254 | . 691 117 388 58 Explosive . | . . . . . Electromagnetic . | . . . . . Impact . | . . . . . Slashing 29 | . . . . 29 Piercing . | . . . . . Highest Corruption 7 | . 7 . . 1 Average Corruption 5 | . 6 . . 1 Corruption Purged . | . . . . . Corruption Blocked . | . . . . . Effects 21 | . 21 . . . Message Errors 4 | . 4 . . . Matter Fused 7 | . 7 . . . Heat Flow Errors 3 | . 3 . . . Energy Discharges 2 | . 2 . . . Parts Rejected 1 | . 1 . . . Data Loss (major) 1 | . 1 . . . Misfires 2 | . 2 . . . Alerts 1 | . 1 . . . Overload Shots . | . . . . . Overflow Damage 9 | . . . . 9 Projectiles . | . . . . . Explosions . | . . . . . Melee 9 | . . . . 9 Knockbacks . | . . . . . Impact . | . . . . . Kinetic . | . . . . . Secondary . | . . . . . Self-Inflicted Damage . | . . . . . Shots . | . . . . . Rammed . | . . . . . Targets Rammed 2 | . 1 . 1 . Kicked 2 | . 1 . 1 . Crushed . | . . . . . Highest Temperature 471 | . 471 95 117 2 Average Temperature 95 | . 115 54 40 1 Received Heat Transfer 483 | . 255 45 123 60 Effects 1 | . 1 . . . Matter Decay 1 | . 1 . . . Siege Activations . | . . . . . Martial Activations . | . . . . . Shielding Activations . | . . . . . Robots Disrupted . | . . . . . Combat Hostiles . | . . . . . Robots Corrupted . | . . . . . Combat Hostiles . | . . . . . Parts Fried . | . . . . . Impact Corruptions . | . . . . . Robots Melted 1 | . . . 1 . Combat Hostiles 1 | . . . 1 . Parts Melted 14 | . 4 4 6 . Heat Transferred 3755 | . 2294 370 962 129 Parts Sabotaged . | . . . . . Parts Stolen . | . . . . . Parts Stripped . | . . . . . Power Chain Reactions . | . . . . . Alert | -11 -10 -9 -9 -9 ------- Run | Yrd Mat Mat Sto Gar Maximum Alert Level . | . . . . . Low Security (%) 100 | 100 100 100 100 100 Level 1 . | . . . . . Level 2 . | . . . . . Level 3 . | . . . . . Level 4 . | . . . . . Level 5 . | . . . . . High Security . | . . . . . Max Security . | . . . . . Peak Influence 169 | 5 169 62 90 160 Initial 51 | . . 51 15 45 Average 74 | 1 88 43 34 117 Influence Increases 905 | 20 497 46 137 205 Destroy 0b10 Robot/C 560 | . 300 20 100 140 Destroy 0b10 Robot/NC 55 | 20 25 5 5 . Destroy Leader 126 | . 74 10 32 10 Successful Hack 63 | . 52 11 . . Anti-Garrison Action 50 | . . . . 50 Destroy Structure 6 | . 1 . . 5 Lose Combat Pursuer 45 | . 45 . . . Influence Decreases 785 | 20 375 131 104 155 Entered New Map 118 | . . 71 22 25 Time Decay 507 | 20 365 50 72 . Lost Part 160 | . 10 10 10 130 Squads Dispatched 5 | . 3 . 2 . Investigation . | . . . . . Extermination . | . . . . . Reinforcement 5 | . 3 . 2 . Assault . | . . . . . Garrison . | . . . . . Intercept . | . . . . . Searches Triggered . | . . . . . Construction Impeded . | . . . . . Haulers Reinforced . | . . . . . Active Scanning Responses . | . . . . . Cargo Convoy Interrupts . | . . . . . Stealth | -11 -10 -9 -9 -9 --------- Run | Yrd Mat Mat Sto Gar Distress Signals 3 | . 2 . 1 . Communications Jammed . | . . . . . Distress Signals . | . . . . . Times Spotted 45 | . 23 3 7 12 Peak Tracking Total 4 | . 4 3 4 4 Tactical Retreats 2 | . 2 . . . Traps | -11 -10 -9 -9 -9 ------- Run | Yrd Mat Mat Sto Gar Traps Triggered 3 | . 1 . 2 . Indirectly . | . . . . . Trap Hack Attempts . | . . . . . Triggered . | . . . . . Disarmed . | . . . . . Reprogrammed . | . . . . . Reused . | . . . . . Traps Extracted . | . . . . . Installed . | . . . . . Triggered . | . . . . . Machines | -11 -10 -9 -9 -9 ---------- Run | Yrd Mat Mat Sto Gar Machines Disabled 1 | . . . . 1 Max in Single Turn 1 | . . . . 1 Garrison Relay 1 | . . . . 1 Machines Repaired . | . . . . . Machines Dismantled . | . . . . . Machines Sabotaged . | . . . . . Overloaded Fab Kills . | . . . . . Hacking | -11 -10 -9 -9 -9 --------- Run | Yrd Mat Mat Sto Gar Machines Accessed 10 | . 7 1 2 . Terminals 9 | . 7 1 1 . Fabricators . | . . . . . Repair Stations . | . . . . . Recycling Units . | . . . . . Scanalyzers . | . . . . . Garrison Access 1 | . . . 1 . Total Hacks 35 | . 28 5 2 . Successful 18 | . 13 3 2 . Failed 16 | . 14 2 . . Catastrophic 5 | . 3 2 . . Database Lockouts 1 | . 1 . . . Manual 28 | . 23 5 . . Terminals 34 | . 28 5 1 . Fabricators . | . . . . . Repair Stations . | . . . . . Recycling Units . | . . . . . Scanalyzers . | . . . . . Garrison Access 1 | . . . 1 . Terminal Hacks 6 | . 5 . 1 . Part Schematic 1 | . 1 . . . Robot Schematic 1 | . 1 . . . Robot Analysis 1 | . 1 . . . Locate Traps 1 | . 1 . . . Zone Layout 2 | . 1 . 1 . Fabricator Hacks . | . . . . . Repair Station Hacks . | . . . . . Recycling Unit Hacks . | . . . . . Scanalyzer . | . . . . . Garrison Access Hacks 1 | . . . 1 . Unlock Access 1 | . . . 1 . Unauthorized Hacks 11 | . 8 3 . . Terminals 11 | . 8 3 . . Botnet 2 | . 1 1 . . Disrupt 1 | . . 1 . . Skim 8 | . 7 1 . . Fabricators . | . . . . . Repair Stations . | . . . . . Recycling Units . | . . . . . Scanalyzers . | . . . . . Garrison Access . | . . . . . Data Cores Recovered . | . . . . . Used . | . . . . . Hacking Detections 8 | . 6 1 1 . Full Trace Events . | . . . . . Feedback Events . | . . . . . Feedback Blocked . | . . . . . Robot Schematics Acquired 1 | . 1 . . . Robots Built . | . . . . . Authchips . | . . . . . Time . | . . . . . Total Robot Build Rating . | . . . . . Part Schematics Acquired 1 | . 1 . . . Parts Built . | . . . . . Authchips . | . . . . . Time . | . . . . . Total Part Build Rating . | . . . . . Part Studies Acquired . | . . . . . Parts Repaired . | . . . . . Time . | . . . . . Parts Recycled . | . . . . . Recycled Matter . | . . . . . Retrieved Matter . | . . . . . Retrieved Components . | . . . . . Parts Scanalyzed . | . . . . . Part Schematics Acquired . | . . . . . Parts Damaged . | . . . . . Bothacking | -11 -10 -9 -9 -9 ------------ Run | Yrd Mat Mat Sto Gar Used RIF Installer . | . . . . . Robots Hacked . | . . . . . Non-combat . | . . . . . Combat . | . . . . . Robot Hacks Applied . | . . . . . Relay Couplers Released 5 | . . . . 5 Machine Destruction 5 | . . . . 5 Fabnet Peak Effective % . | . . . . . Robots Rewired . | . . . . . Allies Hacked . | . . . . . Hacks Repelled . | . . . . . Allies | -11 -10 -9 -9 -9 -------- Run | Yrd Mat Mat Sto Gar Total Allies . | . . . . . Largest Group . | . . . . . Highest-Rated Group . | . . . . . Highest-Rated Ally . | . . . . . Total Orders . | . . . . . Ally Attacks . | . . . . . Total Damage . | . . . . . Kills . | . . . . . Allies Corrupted . | . . . . . Allies Melted . | . . . . . Intel | -11 -10 -9 -9 -9 ------- Run | Yrd Mat Mat Sto Gar Active Infowar (turns) 1331 | 81 934 105 196 15 Seismic 1331 | 81 934 105 196 15 Robot Analysis Total 1 | . 1 . . . Derelict Logs Recovered . | . . . . . Drone Launches . | . . . . . Drone Recoveries . | . . . . . Exploration | -11 -10 -9 -9 -9 ------------- Run | Yrd Mat Mat Sto Gar Turns Passed 1671 | 168 968 105 196 234 Spaces Moved 857 | 90 490 65 99 113 Core 5 | 3 . . . 2 Treads . | . . . . . Legs 850 | 87 490 65 99 109 Wheels 2 | . . . . 2 Hover . | . . . . . Flight . | . . . . . Fastest Speed 50 | 50 120 120 120 110 Average Speed 133 | 117 142 120 122 121 Slowest Speed 260 | 120 190 120 260 200 Overloaded Moves . | . . . . . Propulsion Burnouts . | . . . . . Robots Hopped . | . . . . . Potential Cave-ins . | . . . . . Cave-ins Triggered . | . . . . . Exploration Rate (%) 25 | 6 73 11 18 21 Regions Visited 4 Branch Regions 1 Pre-discovered Areas . | . . . . . Known Exits Taken 2 | . 1 . 1 . Unknown Exits Taken 2 | 1 . 1 . . Scrap Searched . | . . . . . Spaces Dug . | . . . . . Terrain Destroyed . | . . . . . Melee . | . . . . . Projectile . | . . . . . AOE . | . . . . . Terrain Rammed . | . . . . . Walls Destroyed . | . . . . . Machines Disabled . | . . . . . Actions | -11 -10 -9 -9 -9 --------- Run | Yrd Mat Mat Sto Gar Total 1156 | 118 663 77 136 162 Wait 109 | . 96 . 13 . Move 853 | 89 489 64 98 113 Hop . | . . . . . Pick Up 17 | 6 8 2 . 1 Fast Attach 16 | 7 1 . 4 4 Attach 11 | . 1 3 2 5 Detach . | . . . . . Swap 12 | 1 8 . 1 2 Drop 8 | . 8 . . . Fire 120 | 15 51 8 17 29 Melee 8 | . . . . 8 Ram . | . . . . . Kick 2 | . 1 . 1 . Crush . | . . . . . Escape Stasis . | . . . . . Rewire . | . . . . . Trap . | . . . . . Miscellaneous . | . . . . . Route ------- -11/Scrapyard -10/Materials (discovered 5 exits: *Mat x3 / [*Min] / Sub) -9/Materials (discovered 4 exits: Mat x3 / *Sto) -9/Storage (discovered 2 exits: Mat / Gar) -9/Garrison History --------- Turn | Location | Event 4 | -11/Scrapyard | Discovered new exit (range 15) 169 | -11/Scrapyard | Entered Materials 260 | -10/Materials | Central database locked down 303 | -10/Materials | Build established: Mutant 792 | -10/Materials | Discovered new exit (range 14) 891 | -10/Materials | Discovered new exit (range 11) 950 | -10/Materials | Identified exit to Subcaves 1000 | -10/Materials | Identified exit to Materials 1069 | -10/Materials | Learned 4 Recycling zone layouts 1112 | -10/Materials | Learned 2 Storage zone layouts 1137 | -10/Materials | Entered another Materials area 1137 | -9/Materials | Evolved 2 slots: Propulsion x1, Utility x1 1138 | -9/Materials | Identified exit to Materials 1209 | -9/Materials | Discovered new exit (range 10) 1242 | -9/Materials | Entered Storage 1409 | -9/Storage | Identified exit to Garrison 1438 | -9/Storage | Entered Garrison 1480 | -9/Garrison | Triggered checkpoint 1495 | -9/Garrison | Core integrity fell below 50% 1528 | -9/Garrison | Lost 6 parts (1p2n2u1w) 1544 | -9/Garrison | Garrison Relay disabled 1628 | -9/Garrison | Triggered checkpoint 1655 | -9/Garrison | Triggered checkpoint 1656 | -9/Garrison | Core integrity fell below 20% 1672 | -9/Garrison | Destroyed by S-10 Pest with Light Assault Rifle Last Messages --------------- 01510_ Acquired Rnf. Ion Engine. 01514_ Acquired Katana. 01521_ Acquired 16 matter. 01529_ Acquired 10 matter. 01544_ Garrison Relay disabled. 01544_ Relay Coupler [Sentry] tumbles out of relay unit. 01544_ Relay Coupler [NC] tumbles out of relay unit. 01544_ Relay Coupler [Grunt] tumbles out of relay unit. 01544_ Relay Coupler [Sentry] tumbles out of relay unit. 01628_ Beams of light sweep through the air. An alarm sounds. 01632_ Aluminum Leg destroyed. 01638_ Lgt. Assault Rifle destroyed. 01640_ S-10 Pest destroyed. 01655_ Beams of light sweep through the air. An alarm sounds. 01658_ Lgt. Assault Rifle destroyed. 01659_ Aluminum Leg destroyed. 01665_ Wheel destroyed. 01667_ Rnf. Ion Engine destroyed. 01672_ Destroyed Flight Unit. 01672_ G-34 Mercenary destroyed. Map ----- +----------------------------------------------------+ | ??????????????????????????????????????????# #???? | | ??????????????????????????????????????????# #???? | | ??????????????????????????????????????????# #???? | | ??????????????????????????????????????????# #???? | | ??????????????????????????????????????????# #???? | | ??????????????????????????????????????????# #???? | | ??????????????????????????????????????????# #???? | | ?????????????????????###################### #???? | | ?????????????????????# #???? | | ?????????????????????# #???? | | ?????????????????????# ######################???? | | ?????????????????????# #????????????????????????? | | ?????????????????????# #????????????????????????? | | ?????????????????????# #????????????????????????? | | ?????????????????????# #????????????????????????? | | ???????????????####??# #????????????????????????? | | ???????????????# ?# #????????????????????????? | | ??????????###### ## ##???????????????????????? | | ????????? #???????????????????????? | | ????????? #???????????????????????? | | ????????? g #???????????????????????? | | ?????????## ## ##% #???????????????????????? | | ??????????# ## ##= ###?????????????????????? | | ??????????" s#?????????????????????? | | ??????????" %%#?????????????????????? | | ??????????" @s#?????????????????????? | | ??????????" #?????????????????????? | | ??????????# ## ## ###?????????????????????? | | ??????????? ??# ?# #???????????????????????? | | ?????????????? ? #???????????????????????? | | ???????????? #???????????????????????? | | ??????????? #???????????????????????? | | ???????????# ##""""## #???????????????????????? | | ???????????# ????????# #???????????????????????? | | ?????????????????????# #???????????????????????? | | ?????????????????????# #???????????????????????? | | ?????????????????????# #???????????????????????? | | ?????????????????????# ????????????????????????? | | ?????????????????????# ????????????????????????? | | ?????????????????????# ????????????????????????? | | ?????????????????????? ^????????????????????????? | | ?????????????????????????????????????????????????? | | ?????????????????????????????????????????????????? | | ?????????????????????????????????????????????????? | | ?????????????????????????????????????????????????? | | ?????????????????????????????????????????????????? | | ?????????????????????????????????????????????????? | | ?????????????????????????????????????????????????? | | ?????????????????????????????????????????????????? | | ?????????????????????????????????????????????????? | +----------------------------------------------------+ Best States ------------- Heat Dissipation 38 Energy Generation 14 Energy Capacity 280 Matter Stores 300 Matter Capacity 300 Sight Range 16 Terrain Scan Density 10 Evasion (%) 55 Targeting Accuracy 5 Item Schematics ----------------- Hcp. Storage Unit | -10/Materials | Hacked Robot Schematics ------------------ M-13 Machinist | -10/Materials | Hacked Fabricated ------------ Nothing Repaired ---------- Nothing Studied --------- None Alien Tech Used ----------------- None Achievements -------------- None Challenges ------------ None Game ------ Seed LongswordCombatScreen Manual? 0 Play Time 00:11:25 Cumulative 293.6 hours Start 2025.12.03 @ 19:58:39 End 2025.12.03 @ 20:08:32 Sessions 1 Manual Loads 0 Difficulty Rogue Special Mode None Game No. 627 Rogue 627 Adventurer 0 Explorer 0 Win Type - Total 20 Types 14/0/4/1/1/0/0/0/0/0 Lore% 80 Gallery% 72 Achievement% 50 Wizard Run 0 Options --------- Layout 0 ASCII 0 Keyboard 0 Movement Numpad Keybinds 0 Fullscreen 2 Font 18/Terminus Map View 76x50 Zoom Use 0% Tactical HUD 1 Map Filters NONE Filters SATURATION(100) Steam 1 RUN: c945694a-ae5a-4a2b-ae1b-867645cde1d0